bitfinex/quotes_SOLUSD_20240714
["timestamp","ask_amount","ask_price","bid_price","bid_amount"]
[1720923338986,8.7690969,145.04,144.97,11.24]
[1720923338987,1.72446312,145.0,144.97,11.24]
[1720923339167,1.72446312,145.0,144.96,11.24]
[1720923339568,1.72446312,145.0,144.9,61.2125]
[1720923339774,1.72446312,145.0,144.96,11.24]
[1720923340392,1.72446312,145.0,144.97,11.24]
[1720923340595,46.7245471,145.01,144.97,11.24]
[1720923344797,1.72453453,145.0,144.97,11.24]
[1720923344983,1.72453453,145.0,144.98,11.24]
[1720923345897,1.72441654,145.01,144.97,11.24]
[1720923347386,1.72441654,145.01,144.98,11.24]
[1720923351901,1.72439481,145.03,144.98,11.24]
[1720923352080,46.72439481,145.03,144.99,11.24]
[1720923352588,1.72439481,145.03,145.0,11.24]
[1720923354919,12.96439481,145.03,144.99,11.24]
[1720923360322,1.72439481,145.03,144.99,11.24]
[1720923360618,1.72439481,145.03,144.95,16.0374]
[1720923360619,1.72439481,145.03,145.0,11.24]
[1720923360821,1.72416441,145.04,144.97,11.24]
[1720923361026,1.72416441,145.04,145.03,11.24]
[1720923361201,1.72379702,145.06,145.03,11.24]
[1720923361601,1.72379702,145.06,145.04,11.24]
[1720923361811,1.72358178,145.09,145.05,11.24]
[1720923362013,1.72358178,145.09,145.06,11.24]
[1720923362701,1.72343738,145.08,145.07,11.24]
[1720923363021,12.96338501,145.11,145.07,11.24]
[1720923363228,1.72340092,145.1,145.07,11.24]
[1720923364724,1.72326995,145.11,145.09,11.24]
[1720923364909,1.72326995,145.11,145.06,15.5765]
[1720923364910,1.72306662,145.14,145.1,11.24]
[1720923365112,1.72306662,145.14,145.12,11.24]
[1720923366225,1.72288664,145.13,145.12,11.24]
[1720923366397,1.72283057,145.16,145.12,11.24]
[1720923366725,1.72283057,145.16,145.13,11.24]
[1720923368502,46.72283057,145.16,145.06,15.5765]
[1720923368703,57.96283057,145.16,145.11,11.24]
[1720923368909,46.72283057,145.16,145.11,11.24]
[1720923369106,12.96283057,145.16,145.11,11.24]
[1720923369421,1.72283057,145.16,145.12,11.24]
[1720923370932,1.72283057,145.16,145.06,15.5765]
[1720923370933,1.72283057,145.16,145.13,11.24]
[1720923371728,1.72283057,145.16,145.14,11.24]
[1720923371916,1.72283057,145.16,145.13,11.24]
[1720923372711,1.7224861,145.17,145.14,11.24]
[1720923375248,1.7224861,145.17,145.15,11.24]
[1720923375534,2.59144354,145.18,145.16,11.24]
[1720923375744,0.8691099,145.18,145.16,11.24]
[1720923376243,0.8691099,145.18,145.17,11.24]
[1720923379039,0.8691099,145.18,145.11,21.9809]
[1720923379333,0.8691099,145.18,145.17,11.24]
[1720923380518,0.8691099,145.18,145.17,72.0053]
[1720923381522,0.8691099,145.18,145.17,117.0053]
[1720923382833,1.72151107,145.26,145.17,117.0053]
[1720923383027,1.72134439,145.27,145.24,11.24]
[1720923383228,1.72131367,145.26,145.24,11.24]
[1720923383522,1.72131367,145.26,145.18,44.96]
[1720923383523,1.72132057,145.27,145.25,11.24]
[1720923383852,1.72102302,145.3,145.26,11.24]
[1720923384024,34.1835,145.32,145.23,15.8053]
[1720923384025,1.72088589,145.29,145.23,15.8053]
[1720923384225,1.72088589,145.29,145.24,11.24]
[1720923384431,12.96088589,145.29,145.25,11.24]
[1720923384729,12.96088589,145.29,145.24,11.24]
[1720923384930,12.96088589,145.29,145.2,15.8053]
[1720923384931,11.24,145.27,145.2,15.8053]
[1720923385146,1.7214884,145.26,145.22,11.24]
[1720923386236,1.7214884,145.26,145.23,11.24]
[1720923388039,1.72128337,145.31,145.25,11.24]
[1720923388343,11.24,145.3,145.25,11.24]
[1720923388513,1.72106642,145.29,145.25,11.24]
[1720923388711,12.96106642,145.29,145.24,11.24]
[1720923388916,11.24,145.28,145.24,11.24]
[1720923389147,1.72129976,145.27,145.2,15.8053]
[1720923389445,1.72131095,145.26,145.24,11.24]
[1720923389641,46.90919827,145.32,145.25,11.24]
[1720923389642,1.72129804,145.28,145.25,11.24]
[1720923390522,1.72129804,145.28,145.26,11.24]
[1720923390740,1.7210746,145.29,145.26,11.24]
[1720923391150,1.7210746,145.29,145.2,15.8053]
[1720923391448,1.7210746,145.29,145.26,11.24]
[1720923391660,46.72098683,145.3,145.27,11.24]
[1720923391816,1.72096795,145.29,145.27,11.24]
[1720923392335,1.72096795,145.29,145.28,11.24]
[1720923392649,1.72084395,145.31,145.28,11.24]
[1720923393231,1.72084395,145.31,145.27,11.24]
[1720923394353,12.96084395,145.31,145.27,11.24]
[1720923396158,1.72084395,145.31,145.21,20.0]
[1720923396460,1.72084395,145.31,145.24,11.24]
[1720923396461,11.24,145.29,145.24,11.24]
[1720923396636,1.72111993,145.28,145.24,11.24]
[1720923396829,1.72111993,145.28,145.25,11.24]
[1720923397654,11.24,145.28,145.2,15.8053]
[1720923397961,1.72131101,145.27,145.23,11.24]
[1720923398255,1.72131101,145.26,145.23,11.24]
[1720923398661,1.72131101,145.26,145.2,15.8053]
[1720923398662,12.96131101,145.26,145.2,15.8053]
[1720923398965,11.24,145.25,145.13,6.5887]
[1720923399150,1.72176358,145.24,145.19,11.24]
[1720923399461,1.72172544,145.23,145.2,11.24]
[1720923400428,1.72172658,145.24,145.2,11.24]
[1720923400727,22.9435,145.26,145.13,6.5887]
[1720923400728,1.72168764,145.23,145.21,11.24]
[1720923400933,1.72161916,145.25,145.21,11.24]
[1720923401356,1.72161916,145.25,145.22,11.24]
[1720923402033,1.72146558,145.29,145.22,11.24]
[1720923402358,11.24,145.27,145.23,11.24]
[1720923402653,46.72146558,145.29,145.23,11.24]
[1720923402654,1.72143161,145.26,145.23,11.24]
[1720923403250,1.72143161,145.26,145.17,16.3005]
[1720923403251,12.96143161,145.26,145.17,16.3005]
[1720923403554,1.72156189,145.25,145.22,11.24]
[1720923403855,1.72156189,145.25,145.18,11.24]
[1720923403856,1.7214244,145.26,145.18,11.24]
[1720923404052,1.7214244,145.26,145.23,11.24]
[1720923404956,1.7214244,145.26,145.17,16.3005]
[1720923405153,1.72133402,145.27,145.25,11.24]
[1720923405359,1.72116394,145.28,145.25,11.24]
[1720923405935,2.75295753,145.31,145.25,11.24]
[1720923405936,1.72111289,145.29,145.25,11.24]
[1720923406140,1.72111289,145.29,145.26,11.24]
[1720923406337,12.96111289,145.29,145.23,16.3005]
[1720923406549,12.96111289,145.29,145.24,11.24]
[1720923407060,1.72118712,145.28,145.24,11.24]
[1720923407551,1.72118712,145.28,145.18,96.4824]
[1720923407764,12.96118712,145.28,145.23,11.24]
[1720923407935,11.24,145.27,145.23,11.24]
[1720923408136,1.72135034,145.26,145.23,11.24]
[1720923409162,1.72131911,145.27,145.24,11.24]
[1720923409463,11.24,145.3,145.25,11.24]
[1720923409765,1.72114137,145.29,145.25,11.24]
[1720923411151,1.72114137,145.29,145.19,16.3005]
[1720923411152,12.96114137,145.29,145.19,16.3005]
[1720923411454,12.96114137,145.29,145.24,11.24]
[1720923412872,11.24,145.26,145.19,16.3005]
[1720923413047,33.63924137,145.29,145.19,16.3005]
[1720923413048,12.96162894,145.25,145.19,16.3005]
[1720923413556,12.96162894,145.25,145.2,11.24]
[1720923414154,1.72160376,145.24,145.2,11.24]
[1720923414349,1.72164691,145.23,145.15,16.3005]
[1720923414564,12.96164691,145.23,145.19,11.24]
[1720923414970,1.72164691,145.23,145.15,16.3005]
[1720923415268,11.24,145.18,145.13,11.24]
[1720923415562,1.72245431,145.17,145.13,11.24]
[1720923415745,1.72245431,145.17,145.14,11.24]
[1720923416357,12.96245431,145.17,145.11,16.3005]
[1720923416553,1.72261998,145.16,145.07,16.3005]
[1720923416753,1.72272663,145.2,145.07,16.3005]
[1720923416955,10.0,145.19,145.07,16.3005]
[1720923417165,1.72285296,145.18,145.07,16.3005]
[1720923417365,1.72285326,145.17,145.07,16.3005]
[1720923418078,11.72285326,145.17,145.07,16.3005]
[1720923418257,45.0,145.16,145.07,16.3005]
[1720923418453,1.72307138,145.15,145.07,16.3005]
[1720923418766,1.72306931,145.14,145.07,16.3005]
[1720923419955,100.0,145.1,145.07,16.3005]
[1720923420978,100.0,145.1,145.03,15.0988]
[1720923421160,1.72294662,145.09,145.03,15.0988]
[1720923421474,100.0,145.1,145.04,22.4]
[1720923422570,100.0,145.1,145.06,22.4]
[1720923423955,100.0,145.1,145.08,22.4]
[1720923424977,100.0,145.1,145.09,20.0]
[1720923425272,83.3334,145.1,145.09,41.15]
[1720923425473,83.3334,145.1,145.09,86.15]
[1720923426061,83.3334,145.1,145.09,41.15]
[1720923426775,83.3334,145.1,145.09,21.15]
[1720923427775,83.3334,145.1,145.09,66.15]
[1720923429555,1.7227596,145.2,145.09,86.15]
[1720923429879,1.72204141,145.21,145.13,22.4]
[1720923430079,1.72201244,145.2,145.13,22.4]
[1720923430370,1.7219894,145.21,145.13,22.4]
[1720923430575,1.72198822,145.2,145.13,22.4]
[1720923430779,1.72198508,145.21,145.13,22.4]
[1720923430960,1.72198703,145.2,145.13,22.4]
[1720923431164,1.72197687,145.21,145.13,22.4]
[1720923431379,21.3421,145.22,145.13,22.4]
[1720923431380,1.72197639,145.2,145.13,22.4]
[1720923431556,1.72199177,145.21,145.13,22.4]
[1720923431762,1.72199108,145.2,145.13,22.4]
[1720923432686,1.72199111,145.21,145.13,22.4]
[1720923432859,1.72198954,145.2,145.13,22.4]
[1720923433886,1.72199106,145.21,145.13,22.4]
[1720923434086,1.72199106,145.21,145.1,45.0]
[1720923434087,1.72199091,145.2,145.09,21.15]
[1720923434261,1.72199091,145.2,145.09,43.55]
[1720923435594,1.72199091,145.2,145.06,22.4]
[1720923436586,1.72199091,145.2,145.07,20.0]
[1720923438467,1.72199091,145.2,145.11,22.4]
[1720923438874,1.72199091,145.2,145.09,22.4]
[1720923439271,1.72199091,145.2,145.11,22.4]
[1720923441978,1.72199091,145.2,145.09,22.4]
[1720923442604,1.72199091,145.2,145.08,45.0]
[1720923442775,1.72199091,145.2,145.09,20.0]
[1720923444498,1.72199091,145.2,145.08,45.0]
[1720923444499,16.3458,145.19,145.08,45.0]
[1720923444798,46.72264844,145.18,145.07,22.4]
[1720923444983,1.72269212,145.17,145.08,20.0]
[1720923445466,6.0089,145.16,145.08,20.0]
[1720923445670,1.7228319,145.15,145.08,20.0]
[1720923445892,1.72284572,145.15,145.08,20.0]
[1720923446100,1.72284572,145.14,145.08,20.0]
[1720923447093,1.72271628,145.13,145.08,20.0]
[1720923447403,1.72277214,145.15,145.08,20.0]
[1720923447566,1.72276551,145.14,145.08,20.0]
[1720923448606,1.72277268,145.15,145.08,20.0]
[1720923448773,1.7227674,145.14,145.08,20.0]
[1720923449767,1.7227729,145.13,145.08,20.0]
[1720923449973,1.72274858,145.15,145.08,20.0]
[1720923450198,1.72270799,145.14,145.08,20.0]
[1720923451080,1.72273805,145.15,145.08,20.0]
[1720923451278,1.72273673,145.14,145.08,20.0]
[1720923451593,1.72273673,145.14,145.07,22.4]
[1720923451896,16.3458,145.13,145.05,15.0988]
[1720923452083,1.72302311,145.12,145.03,22.4]
[1720923453175,1.72302311,145.12,145.04,20.0]
[1720923454695,1.72302311,145.12,145.04,22.4]
[1720923456602,1.72302311,145.12,145.02,42.4]
[1720923457096,6.0089,145.11,145.02,22.4]
[1720923457311,1.72330414,145.1,145.02,22.4]
[1720923458407,7.73202283,145.11,145.02,22.4]
[1720923458611,7.73202283,145.11,145.03,20.0]
[1720923458912,1.72297999,145.12,145.04,67.4]
[1720923459089,1.72297999,145.12,145.04,22.4]
[1720923467995,1.72297999,145.12,145.01,38.5265]
[1720923468916,1.72297999,145.12,145.02,45.0]
[1720923472497,1.72297999,145.12,145.01,38.5265]
[1720923472698,1.72297999,145.12,145.02,20.0]
[1720923478833,6.0648,145.11,145.02,20.0]
[1720923479138,1.72322924,145.1,145.02,20.0]
[1720923480538,16.3119,145.09,144.98,259.1]
[1720923480719,16.3119,145.07,144.94,6.1208]
[1720923481040,6.429,145.05,144.93,15.0961]
[1720923481211,16.3119,145.03,144.94,22.4]
[1720923481412,1.72400731,145.02,144.94,22.4]
[1720923481849,18.03590654,145.03,144.94,22.4]
[1720923482421,18.03590654,145.03,144.95,20.0]
[1720923482737,16.3119,145.03,144.95,20.0]
[1720923482937,1.72400791,145.02,144.95,20.0]
[1720923483111,18.0359027,145.03,144.95,20.0]
[1720923483434,16.3119,145.03,144.95,20.0]
[1720923483737,16.3119,145.03,144.96,45.0]
[1720923488415,1.72395359,145.02,144.95,20.0]
[1720923489036,1.72395359,145.02,144.94,42.4]
[1720923489243,1.72406549,145.01,144.94,22.4]
[1720923489448,6.429,145.0,144.92,22.4]
[1720923490555,6.429,145.0,144.93,20.0]
[1720923491045,6.429,145.0,144.94,67.4]
[1720923491643,1.72429673,145.02,144.94,67.4]
[1720923492834,1.72429673,145.02,144.94,22.4]
[1720923493039,1.72429673,145.02,144.93,20.0]
[1720923494534,1.72429673,145.02,144.92,22.4]
[1720923494847,1.72429673,145.02,144.93,45.0]
[1720923496333,1.72429673,145.02,144.92,22.4]
[1720923496539,1.72429673,145.02,144.93,45.0]
[1720923497841,22.7409,145.03,144.96,22.4]
[1720923500645,1.72399221,145.02,144.96,22.4]
[1720923500850,1.72399221,145.02,144.93,45.0]
[1720923501051,1.72399221,145.02,144.92,67.4]
[1720923502536,1.72399221,145.02,144.92,22.4]
[1720923504336,16.6122,145.01,144.92,22.4]
[1720923504536,1.7244381,145.0,144.92,22.4]
[1720923508041,1.7244381,145.0,144.89,15.0961]
[1720923508375,16.6122,144.98,144.87,6.49818422]
[1720923508532,12.95476319,144.97,144.92,11.23]
[1720923508738,1.72476319,144.97,144.92,11.23]
[1720923509047,12.95476319,144.97,144.93,11.23]
[1720923510263,1.72476319,144.97,144.85,259.1]
[1720923510467,11.23,144.95,144.9,11.23]
[1720923510762,23.0609,144.93,144.84,37.8595]
[1720923511246,1.72524602,144.92,144.84,37.8595]
[1720923511765,1.72524602,144.92,144.84,22.46]
[1720923512159,23.0609,144.93,144.85,45.0]
[1720923512345,1.72524876,144.92,144.85,45.0]
[1720923512545,23.0609,144.93,144.85,45.0]
[1720923512756,1.72524871,144.92,144.85,45.0]
[1720923512958,23.0609,144.93,144.85,45.0]
[1720923513569,1.72524818,144.92,144.85,45.0]
[1720923515368,1.72524818,144.92,144.81,0.8691099]
[1720923515574,16.6122,144.91,144.81,23.3291099]
[1720923515757,1.72568273,144.9,144.81,0.8691099]
[1720923516073,6.4487,144.88,144.81,0.8691099]
[1720923516362,18.33815129,144.87,144.81,0.8691099]
[1720923517643,16.6122,144.87,144.81,0.8691099]
[1720923518169,16.6122,144.87,144.82,22.46]
[1720923518542,16.6122,144.91,144.84,22.46]
[1720923518969,16.6122,144.91,144.85,45.0]
[1720923519167,16.6122,144.91,144.84,22.46]
[1720923519338,16.6122,144.91,144.85,45.0]
[1720923519868,18.3374715,144.91,144.82,22.46]
[1720923520160,18.3374715,144.91,144.83,20.0]
[1720923520661,18.3374715,144.91,144.84,67.46]
[1720923521365,18.3374715,144.91,144.82,22.46]
[1720923521750,16.6122,144.91,144.84,22.46]
[1720923523365,16.6122,144.91,144.81,0.8691099]
[1720923523550,16.6122,144.91,144.83,22.46]
[1720923523551,18.33754315,144.91,144.83,22.46]
[1720923524548,18.33754315,144.91,144.84,45.0]
[1720923524750,16.6122,144.91,144.85,22.46]
[1720923525468,18.33754193,144.91,144.85,22.46]
[1720923525861,18.33754193,144.91,144.83,22.46]
[1720923531055,18.33754193,144.91,144.81,20.8691099]
[1720923531379,18.33754193,144.91,144.83,22.46]
[1720923538773,18.33754193,144.91,144.88,11.23]
[1720923540372,16.6122,144.91,144.89,11.23]
[1720923540583,18.33754614,144.91,144.89,11.23]
[1720923540872,18.33754614,144.91,144.82,45.0]
[1720923541075,29.56754614,144.91,144.86,11.23]
[1720923541781,18.33754614,144.91,144.87,11.23]
[1720923542081,18.33754614,144.91,144.88,11.23]
[1720923543872,18.33754614,144.91,144.89,11.23]
[1720923544263,18.33754614,144.91,144.83,20.0]
[1720923544456,11.23,144.9,144.81,0.8691099]
[1720923544786,1.72580476,144.89,144.85,11.23]
[1720923544964,1.72580476,144.89,144.86,11.23]
[1720923546267,1.72578636,144.88,144.87,11.23]
[1720923546460,1.72574649,144.9,144.87,11.23]
[1720923546663,1.72573305,144.89,144.86,11.23]
[1720923546868,1.72573305,144.89,144.81,0.8691099]
[1720923547079,1.72573305,144.89,144.86,11.23]
[1720923549285,1.72573305,144.89,144.81,0.8691099]
[1720923549582,1.72573305,144.89,144.86,11.23]
[1720923550063,1.72579471,144.88,144.86,11.23]
[1720923550262,27.8422,144.91,144.87,11.23]
[1720923550263,1.72579459,144.9,144.87,11.23]
[1720923550464,1.72579459,144.9,144.89,11.23]
[1720923550972,1.72579459,144.9,144.88,11.23]
[1720923551480,1.72554708,144.89,144.86,11.23]
[1720923551681,1.72561021,144.9,144.86,11.23]
[1720923551890,1.72561025,144.89,144.86,11.23]
[1720923552090,1.72561025,144.9,144.86,11.23]
[1720923552291,1.72561027,144.89,144.86,11.23]
[1720923552588,1.72565798,144.9,144.86,11.23]
[1720923552773,1.7256103,144.89,144.86,11.23]
[1720923552982,1.7256103,144.89,144.81,0.8691099]
[1720923553178,12.9556103,144.89,144.81,0.8691099]
[1720923553480,12.9556103,144.89,144.84,11.23]
[1720923553680,12.9556103,144.89,144.85,11.23]
[1720923554379,1.72585668,144.88,144.86,11.23]
[1720923554685,11.23,144.89,144.85,11.23]
[1720923554869,12.95589723,144.88,144.81,0.8691099]
[1720923555070,12.95589723,144.88,144.83,11.23]
[1720923555993,12.95605436,144.87,144.83,11.23]
[1720923556670,1.72605436,144.87,144.81,0.8691099]
[1720923556872,1.7260459,144.86,144.83,11.23]
[1720923557081,8.03314646,144.87,144.83,11.23]
[1720923557283,8.03314646,144.87,144.81,0.8691099]
[1720923557491,8.03314646,144.87,144.83,11.23]
[1720923557896,15.6868,144.86,144.81,0.8691099]
[1720923558192,11.23,144.84,144.81,0.8691099]
[1720923558488,1.72653361,144.83,144.81,0.8691099]
[1720923558689,1.72652187,144.82,144.81,0.8691099]
[1720923558873,1.72652512,144.84,144.81,0.8691099]
[1720923559884,12.95652512,144.84,144.81,0.8691099]
[1720923560480,1.7263831,144.85,144.81,12.0991099]
[1720923560675,1.7263831,144.85,144.81,0.8691099]
[1720923560882,1.7263831,144.85,144.81,12.0991099]
[1720923561180,1.7263831,144.85,144.81,0.8691099]
[1720923561382,12.9563831,144.85,144.81,0.8691099]
[1720923561992,12.9563831,144.85,144.81,12.0991099]
[1720923562999,1.7263831,144.85,144.82,11.23]
[1720923563201,1.7263831,144.85,144.83,11.23]
[1720923563404,1.7263831,144.85,144.81,0.8691099]
[1720923563574,1.7263831,144.85,144.81,12.0991099]
[1720923563777,1.7263831,144.85,144.82,11.23]
[1720923564985,1.7263831,144.85,144.81,12.0991099]
[1720923565180,1.7263831,144.85,144.81,0.8691099]
[1720923565389,1.7263831,144.85,144.81,12.0991099]
[1720923565577,1.7263831,144.85,144.81,0.8691099]
[1720923565897,46.7263831,144.85,144.81,12.0991099]
[1720923566084,1.7263831,144.85,144.81,12.0991099]
[1720923566481,12.9563831,144.85,144.81,12.0991099]
[1720923566890,12.9563831,144.85,144.81,0.8691099]
[1720923567494,1.7263831,144.85,144.81,12.0991099]
[1720923567697,1.7263831,144.85,144.82,11.23]
[1720923568096,1.7263831,144.85,144.81,12.0991099]
[1720923568606,11.23,144.84,144.81,0.8691099]
[1720923568803,1.72657979,144.83,144.81,0.8691099]
[1720923568997,1.72657921,144.82,144.81,0.8691099]
[1720923569679,1.72657921,144.82,144.81,12.0991099]
[1720923569875,1.72641288,144.85,144.81,12.0991099]
[1720923570196,1.72641288,144.85,144.82,11.23]
[1720923570404,1.72641288,144.85,144.81,12.0991099]
[1720923570576,46.72641288,144.85,144.81,12.0991099]
[1720923570778,57.95641288,144.85,144.81,12.0991099]
[1720923571704,57.95641288,144.85,144.81,0.8691099]
[1720923572204,1.72641288,144.85,144.81,12.0991099]
[1720923572383,1.72641288,144.85,144.82,11.23]
[1720923573391,12.95641288,144.85,144.81,0.8691099]
[1720923573585,11.23,144.84,144.81,0.8691099]
[1720923573779,1.7264889,144.83,144.81,0.8691099]
[1720923573995,1.72648863,144.82,144.81,0.8691099]
[1720923574987,1.72655004,144.83,144.81,0.8691099]
[1720923575192,1.72655134,144.82,144.81,0.8691099]
[1720923575385,12.95655134,144.82,144.81,0.8691099]
[1720923575581,46.72655134,144.82,144.81,0.8691099]
[1720923575897,1.72655134,144.82,144.81,0.8691099]
[1720923576112,1.72657764,144.83,144.81,0.8691099]
[1720923576394,1.72648474,144.82,144.81,0.8691099]
[1720923576700,1.72648616,144.84,144.81,0.8691099]
[1720923579382,1.72648616,144.84,144.82,11.23]
[1720923579582,1.72637177,144.83,144.82,11.23]
[1720923579784,1.72638281,144.85,144.82,11.23]
[1720923581107,1.72638281,144.85,144.81,0.8691099]
[1720923581284,1.72638281,144.85,144.81,12.0991099]
[1720923583203,12.95638281,144.85,144.81,0.8691099]
[1720923583404,11.23,144.82,144.73,16.2719]
[1720923583708,1.72692913,144.81,144.73,16.2719]
[1720923583886,1.72692913,144.81,144.77,11.23]
[1720923584587,1.72692913,144.81,144.78,11.23]
[1720923587713,1.72679711,144.8,144.78,11.23]
[1720923587890,1.72680014,144.81,144.78,11.23]
[1720923589011,12.95672297,144.83,144.78,11.23]
[1720923592013,11.23,144.82,144.78,11.23]
[1720923592307,12.95674518,144.81,144.76,11.23]
[1720923592702,71.3968,144.8,144.75,11.23]
[1720923592903,1.72717636,144.79,144.75,11.23]
[1720923593296,1.72717636,144.79,144.76,11.23]
[1720923594493,1.72717636,144.79,144.77,11.23]
[1720923597513,15.1668,144.8,144.77,11.23]
[1720923598919,15.1668,144.8,144.76,11.23]
[1720923599821,17.89515189,144.8,144.76,11.23]
[1720923600020,1.7269159,144.79,144.76,11.23]
[1720923600414,1.72687687,144.8,144.77,11.23]
[1720923600610,11.23,144.82,144.77,11.23]
[1720923600811,1.72679596,144.81,144.77,11.23]
[1720923601012,12.95679596,144.81,144.77,11.23]
[1720923601523,1.72679596,144.81,144.72,15.3914]
[1720923601829,1.72660172,144.83,144.73,65.0]
[1720923602000,1.72648495,144.82,144.81,11.23]
[1720923602623,1.72642588,144.83,144.81,11.23]
[1720923602813,1.72642588,144.83,144.82,11.23]
[1720923603526,1.72634188,144.84,144.82,11.23]
[1720923604527,1.72634986,144.83,144.81,11.23]
[1720923604727,11.23,144.86,144.81,11.23]
[1720923604917,1.72638995,144.85,144.81,11.23]
[1720923605520,1.72638995,144.85,144.82,11.23]
[1720923605721,1.72638995,144.85,144.81,11.23]
[1720923607625,1.72637443,144.84,144.81,11.23]
[1720923608327,1.72637425,144.87,144.82,11.23]
[1720923608629,12.95637425,144.87,144.82,11.23]
[1720923609528,1.72637425,144.87,144.84,11.23]
[1720923610011,12.95637425,144.87,144.77,15.3914]
[1720923610206,1.72637425,144.87,144.77,15.3914]
[1720923610408,1.72637425,144.87,144.82,11.23]
[1720923610719,1.72637425,144.87,144.83,11.23]
[1720923610923,12.95637425,144.87,144.77,15.3914]
[1720923611121,12.95637425,144.87,144.82,11.23]
[1720923611607,12.95637425,144.87,144.83,11.23]
[1720923611820,1.72637425,144.87,144.83,11.23]
[1720923613936,11.23,144.86,144.77,15.3914]
[1720923614134,1.72618837,144.85,144.82,11.23]
[1720923614921,1.72618837,144.85,144.83,11.23]
[1720923615130,1.72613616,144.86,144.83,11.23]
[1720923615332,1.72608862,144.85,144.83,11.23]
[1720923615522,11.23,144.86,144.82,11.23]
[1720923615719,1.72628144,144.85,144.82,11.23]
[1720923616937,1.72628144,144.85,144.77,15.3914]
[1720923617239,11.23,144.84,144.77,15.3914]
[1720923617434,1.72638049,144.83,144.79,11.23]
[1720923617737,1.72643788,144.82,144.77,15.3914]
[1720923617939,1.72643788,144.82,144.79,11.23]
[1720923618822,11.23,144.84,144.79,11.23]
[1720923618823,1.72643586,144.83,144.79,11.23]
[1720923619025,1.72643586,144.82,144.8,11.23]
[1720923619223,1.72643621,144.84,144.8,11.23]
[1720923619732,12.95643621,144.84,144.73,15.883]
[1720923619934,1.72643621,144.84,144.79,11.23]
[1720923620138,1.72659583,144.83,144.79,11.23]
[1720923620433,11.23,144.83,144.78,11.23]
[1720923620736,1.7266164,144.82,144.78,11.23]
[1720923620940,1.7266164,144.82,144.79,11.23]
[1720923623339,1.7266164,144.82,144.73,15.883]
[1720923623340,12.9566164,144.82,144.73,15.883]
[1720923623547,11.23,144.81,144.76,11.23]
[1720923623833,11.23,144.81,144.71,6.0105]
[1720923623834,57.9569571,144.8,144.75,11.23]
[1720923624034,12.9569571,144.8,144.75,11.23]
[1720923624629,1.7269571,144.8,144.76,11.23]
[1720923624942,1.72699502,144.8,144.76,11.23]
[1720923625138,12.95699502,144.8,144.71,6.0105]
[1720923625342,12.95699502,144.8,144.76,11.23]
[1720923625740,12.95699502,144.8,144.71,6.0105]
[1720923625936,12.95699502,144.8,144.76,11.23]
[1720923626448,1.72699502,144.8,144.76,11.23]
[1720923626740,1.72701217,144.8,144.77,11.23]
[1720923627622,1.72682736,144.81,144.77,11.23]
[1720923627823,12.95682736,144.81,144.77,11.23]
[1720923628438,11.23,144.8,144.76,11.23]
[1720923628736,1.72688872,144.79,144.76,11.23]
[1720923630148,1.7268875,144.8,144.76,11.23]
[1720923630327,1.72688778,144.79,144.76,11.23]
[1720923630526,1.72688778,144.79,144.71,6.0105]
[1720923630721,1.72688778,144.79,144.75,11.23]
[1720923630921,1.72688778,144.79,144.69,15.883]
[1720923630922,11.23,144.76,144.69,15.883]
[1720923631132,1.72748348,144.75,144.71,11.23]
[1720923631741,1.72748348,144.75,144.72,11.23]
[1720923632339,1.72748348,144.75,144.69,15.883]
[1720923632745,1.72748348,144.75,144.72,11.23]
[1720923634735,1.72745663,144.74,144.72,11.23]
[1720923635047,1.72744397,144.76,144.72,11.23]